[Event "44th Chess Olympiad Women 2022"]
[Site "Chennai"]
[Date "2022.08.03"]
[Round "6.40"]
[White "Monroy G., Nataly A."]
[Black "Mutisya, Jully"]
[Result "1-0"]
[ECO "E90"]
[WhiteElo "1907"]
[BlackElo "1428"]
[Annotator "TA"]
[PlyCount "57"]
[EventDate "2022.07.29"]
[EventType "team-tourn"]
[EventCountry "IND"]
[SourceTitle "playchess.com"]
[Source "ChessBase"]
[SourceQuality "1"]
[WhiteTeam "Bolivia"]
[BlackTeam "Kenya"]
[WhiteTeamCountry "BOL"]
[BlackTeamCountry "KEN"]
[TimeControl "40/5400+30:1800+30"]

{[%evp 14,57,39,10,19,36,16,4,5,0,20,-6,-11,-2,27,34,50,35,48,34,43,33,73,63,53,45,64,72,69,0,169,-163,137,0,3123,3104,2391,2502,2206,2103,1914,1874,29991,29959,1667,1611]} 1. d4 {[%emt 0:00:08]} Nf6 {[%emt 0:00:16]} 2. Nf3 {[%emt 0:00:37]} g6 {[%emt 0:01:07]} 3. c4 {[%emt 0:00:48]} Bg7 {[%emt 0:00:34]} 4. Nc3 {[%emt 0:01:17]} O-O {[%emt 0:00:35]} 5. e4 {[%emt 0:00:07]} d6 {[%emt 0:00:22]} 6. h3 {[%emt 0:00:21]} e5 {[%emt 0:00:52]} 7. d5 {[%emt 0:08:03]} a5 {[%emt 0:07:29]} 8. Be3 {[%emt 0:03:14] 8.g4 gains popularity.} Nfd7 {[%emt 0:07:15] E90: King's Indian: Classical: Early deviations and 6 h3.} 9. g4 {[%emt 0:04:16]} Na6 {[%emt 0:01:21]} 10. Bd3 {[%emt 0:06:18]} Ndc5 {[%emt 0:01:11] The position is equal.} 11. Bc2 {[%emt 0:01:00]} f5 {[%emt 0:05:41]} 12. gxf5 {[%emt 0:05:35]} (12. exf5 {with more complications.} gxf5 13. Bxf5 Rxf5 14. gxf5 Bxf5 15. Kf1) 12... gxf5 {[%emt 0:01:13]} 13. exf5 {[%emt 0:01:00]} Bxf5 {[%emt 0:00:25]} 14. Bxf5 {[%emt 0:01:02]} Rxf5 {[%emt 0:00:47]} 15. Rg1 {[%emt 0:00:03] Hoping for Bh6.} Kh8 {[%emt 0:02:54]} 16. Ng5 {[%emt 0:01:07] [#]} Nb4 $146 {[%emt 0:24:58] ...Bh6 is the strong threat.} ({Predecessor:} 16... Qd7 17. Qd2 e4 18. O-O-O Re8 19. Kb1 a4 20. Bd4 a3 21. Ne6 Bxd4 22. Qxd4+ Re5 23. Nxe4 Nxe4 {1-0 (32) Nakhbayeva,G (2333)-Frolov,A (2322) Chess.com INT 2021}) 17. Qh5 {[%emt 0:01:24][%csl Gg5][%cal Rh5h7] Against Bh6} Nbd3+ {[%emt 0:02:51]} 18. Kd2 {[%emt 0:08:34][%csl Gg5][%cal Rh5h7]} Qg8 {[%emt 0:03:50]} 19. Rg4 $1 {[%emt 0:10:16] aiming for Rag1. Dancing on a razor blade.} Nf4 {[%emt 0:13:53]} (19... Nxf2 $2 20. Rh4 $16) 20. Bxf4 {[%emt 0:02:28]} exf4 {[%emt 0:00:19]} 21. Re1 {[%emt 0:00:25]} (21. Rag1 $1 $14) 21... h6 $2 {[%emt 0:04:48] [#]} (21... Bf6 $1 $11 {and Black is okay.} 22. h4 Be5) 22. h4 $4 {[%emt 0:04:49][%mdl 8192] [#]} (22. Re7 $1 $18 {is the narrow road to win.} Rxg5 23. Rxg5 Bxc3+ 24. Kxc3 Ne4+ 25. Rxe4 Qxg5 26. Qf7 Qg7+ 27. Qxg7+ Kxg7 28. Re7+ (28. Rxf4 Re8 $16) 28... Kf6 29. Rxc7) 22... Nd7 $2 {[%emt 0:06:19]} ({Black should try} 22... Qf8 $1 $19 {White must now prevent ...Kg8.} 23. Re6 b5) 23. Re7 {[%emt 0:01:01] White is more active.} ({Better is} 23. Re6 $16 Qf8 24. Nb5) 23... Nf6 $2 {[%emt 0:00:32][%mdl 8192]} (23... Ne5 $11) 24. Nf7+ $18 {[%emt 0:00:08]} Qxf7 {[%emt 0:04:03]} 25. Qxf7 {[%emt 0:00:06][%csl Ge7,Gg4][%cal Rf7g7]} Ne4+ {[%emt 0:00:56]} 26. Nxe4 {[%emt 0:00:05][%csl Ge7,Gg4][%cal Rf7g7]} Rxf7 {[%emt 0:00:09]} 27. Rxf7 {[%emt 0:00:05]} Bxb2 {[%emt 0:01:06]} 28. Nf6 {[%emt 0:01:06]} Bxf6 {[%emt 0:00:14]} 29. Rxf6 {[%emt 0:00:25] Weighted Error Value: White=0.41/Black=1.12} 1-0

[Event "44th Chess Olympiad Women 2022"]
[Site "Chennai"]
[Date "2022.08.03"]
[Round "6.41"]
[White "Charinda, Kudzanayi"]
[Black "Enomah Emmanuella Trust"]
[Result "0-1"]
[ECO "B54"]
[WhiteElo "1719"]
[BlackElo "1901"]
[Annotator "TA"]
[PlyCount "88"]
[EventDate "2022.07.29"]
[EventType "team-tourn"]
[EventCountry "IND"]
[SourceTitle "playchess.com"]
[Source "ChessBase"]
[SourceQuality "1"]
[WhiteTeam "Zimbabwe"]
[BlackTeam "Nigeria"]
[WhiteTeamCountry "ZIM"]
[BlackTeamCountry "NGR"]
[TimeControl "40/5400+30:1800+30"]

{[%evp 10,88,26,11,39,24,66,0,0,-14,42,9,2,-77,-56,-54,-59,-84,-89,-114,-122,-435,-423,-479,-478,-510,-439,-416,-393,-511,-496,-484,-512,-570,-575,-629,-589,-733,-720,-805,-745,-725,-650,-798,-678,-681,-660,-653,-612,-643,-633,-782,-776,-943,-680,-799,0,-909,-757,-1289,-1213,-5872,-5801,-5677,-3202,-29964,-29967,-29989,-29990,-29990,-3311,-29987,-29984,-29987,-29988,-29990,-29991,-29991,-29991,-29992,-29985]} 1. e4 {[%emt 0:00:39]} c5 {[%emt 0:00:05]} 2. Nf3 {[%emt 0:00:11]} e6 {[%emt 0:00:11]} 3. d4 {[%emt 0:00:15]} cxd4 {[%emt 0:00:04]} 4. Nxd4 {[%emt 0:00:08]} a6 {[%emt 0:00:04]} 5. Nc3 {[%emt 0:00:41]} d6 {[%emt 0:00:20]} 6. Be3 {[%emt 0:01:18]} Nd7 {[%emt 0:01:45] B54: Sicilian: 2...d6 3 d4 cxd4 4 Nxd4, Unusual Lines .} 7. Be2 {[%emt 0:03:07]} b5 {[%emt 0:01:30]} 8. O-O {[%emt 0:01:26]} (8. a4 $1 $14) 8... Bb7 $11 {[%emt 0:00:27] [#] The position is equal.} 9. f4 $146 {[%emt 0:02:12]} ({Predecessor:} 9. Nb3 Ngf6 10. f3 Be7 11. Kh1 O-O 12. g4 b4 13. Nb1 Ne5 14. Bd4 Ng6 15. Bf2 {0-1 (29) Stasieluk,S (1467)-Murawko,J (1479) Bialystok 2010}) 9... b4 {[%emt 0:01:41]} (9... Ngf6 $11) 10. Nb1 {[%emt 0:04:28]} Bxe4 {[%emt 0:01:01]} 11. Bf3 {[%emt 0:00:53]} (11. c3 $1 $11 {keeps the balance.}) 11... Bxf3 $17 {[%emt 0:01:42]} 12. Qxf3 {[%emt 0:00:09]} d5 {[%emt 0:01:43]} 13. Nd2 {[%emt 0:01:22] White is now going downhill.} Ngf6 {[%emt 0:00:31][%cal Bg8f6,Bf6e8,Be8c7][%mdl 32]} 14. Rae1 {[%emt 0:00:32]} Bc5 {[%emt 0:06:28]} 15. Nxe6 $2 {[%emt 0:08:38][%mdl 8192]} fxe6 $19 {[%emt 0:01:09]} 16. g4 {[%emt 0:01:56]} O-O {[%emt 0:02:19]} 17. g5 {[%emt 0:00:47]} Ne8 {[%emt 0:01:32]} 18. Nb3 {[%emt 0:01:15]} Bxe3+ {[%emt 0:00:46]} 19. Rxe3 {[%emt 0:01:33]} Qb6 {[%emt 0:02:13][%cal Od7e5] [#] Threatens to win with ...Ne5!} 20. Kh1 {[%emt 0:00:28]} Nc7 {[%emt 0:01:21]} 21. Qh3 {[%emt 0:00:43]} Rf7 {[%emt 0:03:27]} 22. Rg3 {[%emt 0:01:41]} g6 {[%emt 0:01:39]} 23. Qg4 {[%emt 0:01:38]} Raf8 {[%emt 0:02:10]} 24. h4 {[%emt 0:01:19]} Qd6 {[%emt 0:05:02]} 25. Rgf3 {[%emt 0:02:03]} e5 {[%emt 0:02:03][%cal Be6e5,Be5e4][%mdl 32]} 26. f5 {[%emt 0:06:55]} Rxf5 {[%emt 0:03:35]} 27. Rxf5 {[%emt 0:02:23]} Rxf5 {[%emt 0:00:06]} 28. Rxf5 {[%emt 0:01:00]} gxf5 {[%emt 0:00:06]} 29. Qxf5 {[%emt 0:00:11]} Qe6 {[%emt 0:00:15]} 30. Qf3 {[%emt 0:01:20]} e4 {[%emt 0:01:54]} 31. Qf4 {[%emt 0:02:33]} Qe5 {[%emt 0:03:56]} 32. Qg4 {[%emt 0:03:13]} Qe6 {[%emt 0:06:06]} 33. Qf4 {[%emt 0:10:19]} Nb5 {[%emt 0:00:55]} 34. Nc1 {[%emt 0:04:55]} Nd4 {[%emt 0:02:13] [#] aiming for ...Qh3+.} 35. c3 {[%emt 0:10:06]} bxc3 {[%emt 0:01:40]} 36. bxc3 {[%emt 0:00:23]} Qh3+ {[%emt 0:00:47]} 37. Kg1 {[%emt 0:00:30]} Qxc3 {[%emt 0:01:19]} 38. Kh2 {[%emt 0:02:36]} Nf3+ {[%emt 0:03:35]} 39. Kh3 {[%emt 0:06:22]} Nd2+ {[%emt 0:03:14]} (39... Qe1 $142 40. Nb3 Qh1+ 41. Kg4 Qxh4+ 42. Kf5 Qh3+ 43. Qg4 Nh4+ 44. Kf4 Ng2+ 45. Kf5 Ne3+ 46. Ke6 Qxg4+ 47. Kd6 Nc4+ 48. Kxd5 Ndb6+ 49. Kc5 Qf5+ 50. Kb4 a5+ 51. Nxa5 Qxa5+ 52. Kb3 Qd2 53. a4 Qb2#) 40. Kg4 {[%emt 0:01:13]} Qxc1 {[%emt 0:02:57] Black mates.} 41. Qd6 {[%emt 0:33:52]} Qd1+ {[%emt 0:36:52]} 42. Kh3 {[%emt 0:02:06]} Qf3+ {[%emt 0:00:40]} 43. Kh2 {[%emt 0:00:18]} Nf1+ {[%emt 0:00:38]} 44. Kg1 {[%emt 0:00:11]} Qg3+ {[%emt 0:00:15] Weighted Error Value: White=0.76/Black=0.14 (very precise)} 0-1

[Event "44th Chess Olympiad Women 2022"]
[Site "Chennai"]
[Date "2022.08.03"]
[Round "6.54"]
[White "Deng, Jing Xin Crystal"]
[Black "Mpinganjira, Ellen"]
[Result "1-0"]
[ECO "E90"]
[WhiteElo "1914"]
[BlackElo "1334"]
[Annotator "TA"]
[PlyCount "57"]
[EventDate "2022.07.29"]
[EventType "team-tourn"]
[EventCountry "IND"]
[SourceTitle "playchess.com"]
[Source "ChessBase"]
[SourceQuality "1"]
[WhiteTeam "Hong Kong"]
[BlackTeam "MAW"]
[WhiteTeamCountry "HKG"]
[TimeControl "40/5400+30:1800+30"]

{[%evp 20,57,103,78,156,104,152,148,165,94,205,180,262,255,269,249,247,250,469,454,478,443,460,463,456,463,452,434,508,509,514,525,522,493,493,431,517,515,752,701]} 1. d4 {[%emt 0:00:03]} c5 {[%emt 0:00:20]} 2. d5 {[%emt 0:00:01]} d6 {[%emt 0:00:20]} 3. c4 {[%emt 0:00:04]} g6 {[%emt 0:01:18]} 4. Nc3 {[%emt 0:00:02]} Bg7 {[%emt 0:00:13]} 5. e4 {[%emt 0:00:15]} Na6 {[%emt 0:00:26]} 6. h3 {[%emt 0:01:13]} Nf6 {[%emt 0:02:29]} 7. Nf3 {[%emt 0:01:34]} Nc7 {[%emt 0:00:53]} 8. Bd3 {[%emt 0:00:36]} a6 {[%emt 0:06:55]} 9. a4 {[%emt 0:05:06]} Bd7 {[%emt 0:00:00]} 10. O-O {[%emt 0:05:46]} O-O {[%emt 0:00:00]} 11. Re1 {[%emt 0:01:21] [#]} Re8 $146 {[%emt 0:00:00] E90: King's Indian: Classical: Early deviations and 6 h3.} (11... e5 $142) ({Predecessor:} 11... b6 12. Bf4 Rb8 13. e5 Nfe8 14. Qe2 Rb7 15. b3 Qb8 16. Rac1 b5 17. axb5 axb5 18. exd6 exd6 19. Ne4 bxc4 20. Bxc4 {1-0 (33) Palachev,P (2370)-Vazhenin,A (2144) Samara 2017}) 12. Bf1 {[%emt 0:09:12] White is more active.} ({White should play} 12. e5) 12... Qc8 {[%emt 0:01:09]} (12... e5 $142) 13. Bf4 {[%emt 0:01:12]} Qd8 {[%emt 0:03:46] White is clearly better.} 14. Qd2 {[%emt 0:11:22]} (14. e5 $18) 14... Bc8 {[%emt 0:00:45]} (14... e5 $16) 15. Rad1 {[%emt 0:04:12]} b6 {[%emt 0:07:04]} (15... Nd7 $142 16. a5 Rb8) 16. e5 $18 {[%emt 0:16:04]} dxe5 {[%emt 0:07:57]} 17. Nxe5 {[%emt 0:00:15]} (17. Bxe5 $6 a5 18. b3 Bb7 $16) 17... Bb7 {[%emt 0:02:40]} 18. Qe3 {[%emt 0:04:43]} Nd7 $2 {[%emt 0:07:15] [#]} (18... a5 19. g4 Qc8) 19. Nc6 {[%emt 0:01:36] White is clearly winning.} Bxc6 {[%emt 0:04:59]} 20. dxc6 {[%emt 0:00:07]} Bd4 {[%emt 0:00:11]} 21. Qg3 {[%emt 0:01:44]} ({Don't take} 21. cxd7 Bxe3 22. dxe8=Q+ Qxe8 23. Bxc7 Bd4 $18) 21... Ne6 {[%emt 0:09:51]} 22. cxd7 {[%emt 0:01:00]} Qxd7 {[%emt 0:00:14]} 23. Nd5 {[%emt 0:01:26]} Qb7 {[%emt 0:03:49]} 24. Be5 {[%emt 0:00:25]} Rad8 {[%emt 0:02:01]} 25. Bxd4 {[%emt 0:01:31]} Nxd4 {[%emt 0:01:26]} 26. Qg5 {[%emt 0:03:27]} f6 {[%emt 0:06:01]} 27. Qg4 {[%emt 0:02:11]} Kf7 {[%emt 0:03:18]} 28. Bd3 {[%emt 0:01:36]} e6 {[%emt 0:02:36] [#]} 29. Qh4 $1 {[%emt 0:00:51][%csl LRf6,LRh7] Weighted Error Value: White=0.17 (very precise) /Black=0.50} 1-0

[Event "44th Chess Olympiad Women 2022"]
[Site "Chennai"]
[Date "2022.08.03"]
[Round "6.78"]
[White "Castro, Neusa Aridas De"]
[Black "Morales Santos, Natasha"]
[Result "1/2-1/2"]
[ECO "C01"]
[WhiteElo "1531"]
[BlackElo "1924"]
[Annotator "TA"]
[PlyCount "140"]
[EventDate "2022.07.29"]
[EventType "team-tourn"]
[EventCountry "IND"]
[SourceTitle "playchess.com"]
[Source "ChessBase"]
[SourceQuality "1"]
[WhiteTeam "Mozambique"]
[BlackTeam "Puerto Rico"]
[WhiteTeamCountry "MOZ"]
[BlackTeamCountry "PUR"]
[TimeControl "40/5400+30:1800+30"]

{[%evp 9,140,0,17,2,3,8,12,-3,-6,0,22,19,41,10,43,59,131,-31,41,-27,0,0,0,-18,-24,-43,129,-42,100,104,104,-3,7,19,5,-17,-3,0,0,-28,-16,-41,0,-13,0,0,0,0,0,0,0,0,0,0,0,0,0,0,0,0,103,113,109,121,115,108,113,106,120,110,185,185,185,149,254,252,233,223,370,371,358,380,340,346,336,209,209,209,208,156,142,8,8,0,0,-8,-8,-7,-8,-166,-9,-62,-8,-8,0,0,0,0,0,0,0,0,0,0,0,-645,0,0,0,0,0,-8,0,-8,0,0,0,0,0,0,0,0,0]} 1. e4 {[%emt 0:00:18]} e6 {[%emt 0:00:50]} 2. Nf3 {[%emt 0:00:35]} d5 {[%emt 0:00:17]} 3. exd5 {[%emt 0:00:36]} exd5 {[%emt 0:00:11]} 4. d4 {[%emt 0:00:10]} Bd6 {[%emt 0:00:10]} 5. Be2 {[%emt 0:00:17]} Ne7 {[%emt 0:00:17][%cal Bg8e7,Be7g6,Bg6f4][%mdl 32]} 6. c3 {[%emt 0:00:42] C01: French: Exchange Variation.} O-O {[%emt 0:00:38]} 7. O-O {[%emt 0:00:23]} Nbc6 {[%emt 0:00:23]} 8. Nbd2 {[%emt 0:01:29][%cal Bb1d2,Bd2f1,Bf1g3][%mdl 32]} Ng6 {[%emt 0:04:47]} 9. Re1 {[%emt 0:04:46] [#]} Bf5 $146 {[%emt 0:13:44]} ({Predecessor:} 9... Nf4 10. Nf1 Nxe2+ 11. Qxe2 Bg4 12. Qd3 h6 13. h3 Be6 14. Bd2 Qf6 15. Ne3 a6 {0-1 (29) Reguera Alvarez,S-Perez,J (2245) Fuerteventura 1992}) 10. Nf1 {[%emt 0:04:02]} Nf4 {[%emt 0:01:42]} 11. Bb5 {[%emt 0:01:10]} Be4 {[%emt 0:08:30]} 12. Ng3 {[%emt 0:02:09]} f5 {[%emt 0:01:59]} (12... Re8 $14) 13. h3 $2 {[%emt 0:06:35]} (13. Bxc6 $16 {And now Bxf4 would win.} bxc6 14. Bxf4 Bxf4 15. Ne5) 13... a6 {[%emt 0:18:40]} ({Black should try} 13... Ne6 $15) 14. Bf1 {[%emt 0:02:43]} (14. Bxc6 $14 bxc6 15. Bxf4 Bxf4 16. Nf1) 14... Ng6 {[%emt 0:10:23]} 15. Ng5 {[%emt 0:07:16]} Bxg3 {[%emt 0:15:09]} 16. fxg3 {[%emt 0:03:32]} Qd6 {[%emt 0:01:48]} 17. g4 {[%emt 0:15:58]} (17. Qh5 h6 18. Nxe4 fxe4 $17) 17... Rae8 $2 {[%emt 0:01:30]} (17... h6 $15 18. Nxe4 fxe4) 18. Bd2 $2 {[%emt 0:01:17]} (18. gxf5 $16 Bxf5 19. Rxe8 (19. Qh5 Nge7 $15) 19... Rxe8 20. Nxh7 $1 (20. Qh5 h6 $15)) 18... Nd8 {[%emt 0:06:46]} (18... Re7 $15 {stays ahead.}) 19. gxf5 $16 {[%emt 0:02:49]} Bxf5 {[%emt 0:00:25]} (19... Rxf5 $2 20. Qg4 Ref8 21. Nxe4 dxe4 22. Qxe4 $18) 20. Qh5 {[%emt 0:08:27]} (20. Rxe8 $16 Rxe8 21. Nxh7 $1) 20... h6 {[%emt 0:00:25]} 21. Rxe8 {[%emt 0:02:22]} Rxe8 {[%emt 0:00:01]} 22. Nf3 {[%emt 0:00:16][%cal Bg5f3,Bf3h2,Bh2g4,Bg4e5][%mdl 32]} Rf8 {[%emt 0:00:43]} 23. Re1 {[%emt 0:05:23]} Be4 {[%emt 0:01:07]} 24. Nh2 {[%emt 0:04:36]} c6 {[%emt 0:02:59] With the idea ...Qg3.} 25. Qg4 {[%emt 0:00:48] Inhibits Qg3.} Qf6 {[%emt 0:02:19]} 26. Qe2 {[%emt 0:01:27] Prevents Qf2+.} (26. Nf3 Bxf3 27. gxf3 Qxf3 $1 28. Qxf3 Rxf3 $15) (26. Qg3 $5 {[%cal Rh2g4]}) 26... Nf4 {[%emt 0:01:45]} 27. Bxf4 {[%emt 0:01:00]} Qxf4 {[%emt 0:00:02]} 28. Ng4 {[%emt 0:00:47]} Nf7 {[%emt 0:01:05][%cal Bd8f7,Bf7d6,Bd6f5,Bf5g3][%mdl 32]} 29. Qe3 {[%emt 0:02:12]} Qxe3+ {[%emt 0:01:58]} 30. Rxe3 {[%emt 0:00:25]} Nd6 {[%emt 0:00:14]} 31. Ne5 {[%emt 0:00:46]} Nf5 {[%emt 0:01:49]} 32. Re1 {[%emt 0:00:07]} Ng3 {[%emt 0:01:21]} 33. Nd7 {[%emt 0:01:24]} Rf7 {[%emt 0:00:07]} 34. Nc5 {[%emt 0:00:56]} h5 {[%emt 0:01:20]} ({Don't play} 34... Rxf1+ 35. Rxf1 Nxf1 36. Kxf1 $16) ({Resist} 34... Nxf1 35. Nxe4 dxe4 36. Rxf1 $14) (34... Bf5 $11 {remains equal.}) 35. Nxe4 {[%emt 0:00:47]} Nxe4 {[%emt 0:00:32][%mdl 4096] Endgame KRB-KRN} 36. Bd3 {[%emt 0:00:20]} Nf6 {[%emt 0:00:58]} 37. Bg6 {[%emt 0:00:41] White is more active.} Rc7 {[%emt 0:00:59]} 38. Re6 {[%emt 0:00:56]} Kf8 {[%emt 0:00:40]} 39. Kf2 {[%emt 0:01:03]} Re7 {[%emt 0:00:42] [#]} (39... h4 $16) 40. Rxe7 $1 $18 {[%emt 0:02:05]} Kxe7 {[%emt 0:00:02] KB-KN} 41. Ke3 {[%emt 0:30:12]} b6 {[%emt 0:09:36]} (41... Kd6 $16 42. Kf4 c5) 42. Kf4 {[%emt 0:00:00]} h4 {[%emt 0:04:35]} 43. Kg5 {[%emt 0:04:43]} c5 {[%emt 0:00:55]} (43... Nd7 $142 44. Bf5 (44. Kxh4 c5 $16) 44... Nf8 45. Kxh4 Kf6) 44. Kxh4 {[%emt 0:00:00]} cxd4 {[%emt 0:00:00]} 45. cxd4 {[%emt 0:00:00]} Nd7 {[%emt 0:00:29]} 46. Kg5 {[%emt 0:00:00]} Nb8 {[%emt 0:00:39]} 47. Kf4 {[%emt 0:00:00] Threatens to win with Ke5.} Nc6 {[%emt 0:01:30]} 48. Ke3 {[%emt 0:00:00]} Kf6 {[%emt 0:01:00]} 49. Bh5 {[%emt 0:00:00]} Nb4 {[%emt 0:00:56]} 50. a3 {[%emt 0:00:00]} (50. Bf3 $16) 50... Nc2+ $11 {[%emt 0:00:46]} 51. Kd2 {[%emt 0:00:00]} Nxd4 {[%emt 0:00:19]} 52. Kc3 {[%emt 0:00:00]} Ke5 {[%emt 0:01:09]} 53. Kd3 {[%emt 0:00:00]} Ne6 {[%emt 0:01:39] aiming for ...Nf4+.} 54. g3 {[%emt 0:00:00] Inhibits Nf4+.} (54. Ke3 $11 {and White has nothing to worry.}) 54... Nc5+ $2 {[%emt 0:05:11]} (54... Ng5 $19 55. h4 Ne4) 55. Ke3 {[%emt 0:00:00]} d4+ {[%emt 0:00:00]} (55... Na4 $1 $15 56. Be2 a5) 56. Kf3 $1 {[%emt 0:00:28]} Nd3 {[%emt 0:01:05]} 57. b3 {[%emt 0:01:45]} a5 {[%emt 0:01:03]} 58. Bg6 {[%emt 0:01:24]} Nc1 {[%emt 0:01:15]} 59. b4 {[%emt 0:03:17]} Na2 {[%emt 0:01:18]} 60. bxa5 {[%emt 0:01:03]} bxa5 {[%emt 0:00:02]} 61. a4 {[%emt 0:00:38]} Nc3 {[%emt 0:01:21]} 62. Bc2 $2 {[%emt 0:00:23][%mdl 8192]} (62. Be8 $11) 62... Nd5 $2 {[%emt 0:00:39]} ({Better is} 62... Kd5 $19 {...Kc4 is the strong threat.} 63. Bd3 Nxa4) 63. h4 {[%emt 0:01:16][%cal Bh3h4,Bh4h5][%mdl 32] The position is equal.} Ne3 {[%emt 0:04:35]} 64. Bd3 {[%emt 0:01:00]} Nd5 {[%emt 0:00:27]} 65. g4 {[%emt 0:02:38]} Nf4 {[%emt 0:01:34]} 66. Bf1 {[%emt 0:00:52]} Ng6 {[%emt 0:00:32]} 67. h5 {[%emt 0:00:51]} Nf4 {[%emt 0:00:02]} 68. Bc4 {[%emt 0:00:46]} Nh3 $1 {[%emt 0:00:18]} 69. Bd3 {[%emt 0:01:46]} Ng5+ {[%emt 0:00:55]} 70. Kg3 {[%emt 0:00:22]} Ne6 {[%emt 0:00:33] Quite a comeback for White.  Weighted Error Value: White=0.28 (precise) /Black=0.34} 1/2-1/2